bitfinex/quotes_ETHUSD_20220309
["timestamp","ask_amount","ask_price","bid_price","bid_amount"]
[1646857255541,1.250578,2714.8,2714.4,1.53103649]
[1646857255939,0.00390893,2714.7,2714.4,1.53103649]
[1646857256738,0.04620105,2714.8,2714.4,1.53103649]
[1646857256937,0.04620105,2714.8,2714.5,1.53103649]
[1646857257166,0.00390714,2714.7,2714.6,1.53103649]
[1646857257363,0.03307514,2714.7,2713.9,0.0039082]
[1646857257563,0.03307514,2714.7,2713.9,1.5351165]
[1646857257564,0.00390714,2714.7,2713.9,1.5351165]
[1646857257766,0.029168,2714.5,2713.9,1.5351165]
[1646857257968,1.05426793,2714.5,2713.9,1.5312083]
[1646857258170,1.97595723,2714.5,2713.9,1.5312083]
[1646857258367,1.84333,2714.3,2713.9,1.53511626]
[1646857258771,0.3,2714.3,2713.9,1.53511626]
[1646857259172,0.0507319,2714.4,2713.9,1.5312083]
[1646857259573,0.0039072,2714.3,2713.9,0.00390777]
[1646857259777,0.0039072,2714.3,2713.9,2.20187881]
[1646857260174,0.0039072,2714.3,2713.9,13.44187881]
[1646857260376,0.029168,2714.5,2714.0,2.19797104]
[1646857260576,0.029168,2714.7,2714.1,0.75708773]
[1646857260780,0.0527977,2715.0,2714.1,2.28829603]
[1646857260781,0.00390734,2714.3,2714.1,2.28829603]
[1646857261019,1.8955977,2715.0,2714.6,0.00781467]
[1646857261219,1.8955977,2715.0,2714.7,1.5312083]
[1646857261420,1.9247657,2715.0,2714.7,1.5312083]
[1646857261618,0.92131,2715.1,2714.7,1.5312083]
[1646857261619,0.029168,2715.1,2714.7,2.42618868]
[1646857261816,0.029168,2715.1,2714.8,1.5312083]
[1646857263122,0.00250708,2715.1,2714.8,1.5312083]
[1646857264123,0.58224896,2715.2,2714.9,1.5312083]
[1646857264322,0.58224896,2715.2,2715.0,1.5312083]
[1646857264323,0.03316236,2715.1,2715.0,1.5312083]
[1646857264524,0.00399436,2715.1,2715.0,1.5312083]
[1646857264962,0.92528436,2715.1,2715.0,1.5312083]
[1646857265161,0.92129,2715.1,2714.7,1.5312083]
[1646857265362,0.029168,2715.0,2714.8,1.5312083]
[1646857265763,0.029168,2715.0,2714.7,1.5312083]
[1646857266567,0.03329055,2715.0,2714.7,1.5312083]
[1646857267669,0.029168,2715.0,2714.7,1.5312083]
[1646857267871,0.029168,2715.0,2714.7,2.72807234]
[1646857268069,0.029168,2715.0,2714.8,1.5312083]
[1646857268520,0.029168,2715.0,2714.9,1.5312083]
[1646857268714,0.329168,2715.0,2714.7,1.5312083]
[1646857269415,0.37867999,2715.0,2714.7,1.5312083]
[1646857269717,0.029168,2714.9,2714.7,1.5312083]
[1646857269918,0.34951199,2715.0,2714.7,1.5312083]
[1646857270116,0.029168,2714.8,2714.7,1.5312083]
[1646857272365,0.950678,2714.8,2714.7,1.5312083]
[1646857272664,0.029168,2714.8,2714.7,1.5312083]
[1646857272866,0.329168,2714.8,2714.7,1.5312083]
[1646857273266,0.07859267,2714.8,2714.7,1.5312083]
[1646857274673,0.04942467,2714.8,2714.7,1.5312083]
[1646857274868,0.03307247,2714.9,2714.7,1.5312083]
[1646857274869,0.029168,2714.9,2714.7,1.5312083]
[1646857275070,0.03307247,2714.9,2714.7,1.5312083]
[1646857275470,0.029168,2714.8,2714.7,1.5312083]
[1646857276115,0.05377509,2715.1,2714.7,1.5312083]
[1646857276320,0.0039102,2714.9,2714.7,1.5312083]
[1646857277118,0.08294309,2715.1,2714.7,1.5312083]
[1646857277517,0.00391018,2714.9,2714.7,1.5312083]
[1646857278022,0.03307818,2714.9,2714.7,1.5312083]
[1646857278220,0.029168,2714.8,2714.7,1.5312083]
[1646857278423,0.029168,2714.8,2714.6,0.00781467]
[1646857278619,0.029168,2714.7,2714.6,0.00781467]
[1646857278822,0.029168,2714.7,2714.6,1.53880978]
[1646857279018,0.0490531,2714.8,2714.6,1.53880978]
[1646857279218,0.0490531,2714.8,2714.7,1.53099511]
[1646857279677,0.0782211,2714.8,2714.7,1.53099511]
[1646857280064,0.0782211,2714.8,2714.6,0.00781467]
[1646857280267,0.029168,2714.7,2714.6,0.00781467]
[1646857280465,0.029168,2714.7,2714.6,1.53882676]
[1646857281373,1.30365096,2714.8,2714.6,1.53882676]
[1646857281566,1.30365096,2714.8,2714.7,1.53101209]
[1646857281766,1.27448296,2714.8,2714.7,1.53101209]
[1646857281964,1.30365096,2714.8,2714.7,1.53101209]
[1646857282165,1.2997411,2714.8,2714.7,1.53101209]
[1646857282367,1.2997411,2714.8,2714.7,1.52992932]
[1646857283820,1.250688,2714.8,2714.7,1.52992932]
[1646857284522,1.250688,2714.8,2714.6,0.00781467]
[1646857284724,2.1431211,2714.8,2714.6,0.00781467]
[1646857284922,0.029168,2714.7,2714.6,0.00781467]
[1646857285924,0.6,2714.8,2714.6,0.00781467]
[1646857286123,0.60390989,2714.8,2714.6,0.00781467]
[1646857286323,0.33307789,2714.8,2714.6,0.00781467]
[1646857286723,0.03307789,2714.8,2714.6,0.00781467]
[1646857286925,0.029168,2714.8,2714.6,0.00781467]
[1646857287176,0.03307786,2714.8,2714.6,0.00781467]
[1646857287367,0.029168,2714.7,2714.6,0.00781467]
[1646857287566,0.03307786,2714.8,2714.6,0.00781467]
[1646857287966,0.00390986,2714.8,2714.6,0.00781467]
[1646857288167,3.759268,2714.9,2714.6,0.00781467]
[1646857288472,0.00390986,2714.8,2714.6,0.00781467]
[1646857289273,3.759268,2714.9,2714.6,0.00781467]
[1646857289470,0.00390986,2714.8,2714.6,0.00781467]
[1646857290471,2.1301,2714.9,2714.6,0.00781467]
[1646857290673,0.00390986,2714.8,2714.6,0.00781467]
[1646857291625,2.1301,2714.9,2714.6,0.00781467]
[1646857291818,0.00390986,2714.8,2714.6,0.00781467]
[1646857292817,0.029168,2714.8,2714.6,0.00781467]
[1646857293018,0.029168,2714.7,2714.6,0.00781467]
[1646857293418,0.03307786,2714.8,2714.6,0.00781467]
[1646857294024,0.029168,2714.8,2714.6,0.00781467]
[1646857294229,4.65155,2714.9,2714.6,0.00781467]
[1646857294424,0.029168,2714.7,2714.6,0.00781467]
[1646857295270,1.391738,2714.7,2714.6,1.467e-05]
[1646857295470,1.391738,2714.7,2713.5,0.70143778]
[1646857295471,0.9548386,2714.0,2713.5,0.70143778]
[1646857295771,0.9548386,2714.0,2713.5,0.03467504]
[1646857295772,0.04567417,2713.9,2713.5,0.03467504]
[1646857295972,0.029168,2713.6,2713.5,0.03467504]
[1646857296174,0.04567417,2713.9,2713.8,0.05833599]
[1646857297876,3.54567417,2713.9,2713.8,0.05833599]
[1646857298273,4.54567417,2713.9,2713.8,0.05833599]
[1646857300424,1.04567417,2713.9,2713.8,0.05833599]
[1646857300823,0.04567417,2713.9,2713.8,0.05833599]
[1646857302030,1.52194,2714.0,2713.8,0.05833599]
[1646857302274,2.52194,2714.0,2713.8,0.05833599]
[1646857302473,1.52194,2714.0,2713.9,1.53127976]
[1646857302672,2.52194,2714.0,2713.9,1.53127976]
[1646857302871,1.52194,2714.0,2713.9,1.53127976]
[1646857303372,1.70614,2714.0,2713.9,1.53127976]
[1646857303575,1.70614,2714.0,2713.8,0.06224646]
[1646857303775,1.52194,2714.0,2713.8,0.05961399]
[1646857304976,1.52194,2714.0,2713.8,0.05961422]
[1646857305477,1.52194,2714.0,2713.8,0.00961422]
[1646857305916,1.52194,2714.0,2713.9,1.53125406]
[1646857310970,1.52194,2714.0,2713.8,0.00833599]
[1646857311272,1.52194,2714.0,2713.8,0.01237892]
[1646857311672,1.52194,2714.0,2713.9,1.53129096]
[1646857313074,0.6,2714.0,2713.9,1.53129096]
[1646857313528,0.3,2714.0,2713.9,1.53129096]
[1646857313726,1.22158,2714.2,2713.9,2.41509526]
[1646857313926,1.22158,2714.2,2714.0,1.53129096]
[1646857314530,0.3,2714.2,2714.0,1.53129096]
[1646857314743,0.3,2714.3,2714.1,0.08640992]
[1646857314930,0.3,2714.3,2714.2,1.53129096]
[1646857315134,0.00390403,2714.4,2714.2,1.53129096]
[1646857315729,0.1842,2714.9,2714.2,1.53129096]
[1646857315929,0.00391354,2714.4,2714.2,1.53129096]
[1646857316129,1.244351,2715.1,2714.4,0.00782708]
[1646857316130,1.4128,2715.1,2714.4,0.00782708]
[1646857316329,1.2286,2715.1,2714.5,1.53129096]
[1646857317570,1.5286,2715.1,2714.5,1.53129096]
[1646857317773,1.5286,2715.1,2714.8,1.09291135]
[1646857318069,1.22133,2715.1,2714.8,1.09291135]
[1646857318269,0.3,2715.0,2714.8,1.09291135]
[1646857318475,0.3,2715.0,2714.6,0.08899679]
[1646857318676,2.14287,2715.0,2714.4,0.00782708]
[1646857319677,0.00263794,2714.8,2714.4,0.00782708]
[1646857319877,0.92159,2714.7,2714.4,0.00782708]
[1646857320076,1.8431672,2714.7,2714.4,0.00782708]
[1646857320279,0.3,2714.6,2714.4,0.00782708]
[1646857321927,0.441,2714.5,2714.4,0.00782708]
[1646857322322,0.441,2714.5,2714.1,0.00412928]
[1646857322323,5.5,2714.4,2714.1,0.00412928]
[1646857322526,0.441,2714.3,2714.1,0.00412928]
[1646857322721,2.284709,2714.3,2714.1,0.00412928]
[1646857322929,2.584709,2714.3,2713.8,0.00833599]
[1646857323122,1.84369,2714.2,2713.8,0.00833599]
[1646857323326,2.28469,2714.2,2714.1,0.00412898]
[1646857323526,3.33790598,2714.2,2714.1,0.00412898]
[1646857323725,4.33790598,2714.2,2714.1,0.00412898]
[1646857324125,4.33790598,2714.2,2713.8,0.00833599]
[1646857324527,4.33790598,2714.2,2714.0,0.004129]
[1646857325174,0.92191,2714.1,2714.0,0.004129]
[1646857325370,1.66291,2714.1,2713.8,0.00833599]
[1646857325576,2.76572,2714.0,2713.8,0.00833599]
[1646857325770,4.9876414,2714.0,2713.8,0.00833599]
[1646857325972,5.4286414,2714.0,2713.8,0.00833599]
[1646857326971,5.4286414,2714.0,2713.8,0.01232576]
[1646857327772,5.4286414,2714.0,2713.8,0.00833599]
[1646857328183,5.4286414,2714.0,2713.8,0.01232576]
[1646857329126,5.4286414,2714.0,2713.8,0.00833599]
[1646857329327,5.4286414,2714.0,2713.8,0.01224429]
[1646857329932,0.9219,2713.9,2713.8,0.01224429]
[1646857330326,0.9219,2713.9,2713.8,0.00833599]
[1646857330327,1.2219,2713.9,2713.8,0.00833599]
[1646857330527,1.2219,2713.9,2713.8,0.01224429]
[1646857331126,0.3,2713.9,2713.8,0.01224429]
[1646857331330,0.9217,2714.2,2713.8,0.01224429]
[1646857331527,0.9217,2714.2,2713.8,0.00833599]
[1646857332569,1.2217,2714.2,2713.8,0.00833599]
[1646857332970,1.2217,2714.2,2713.9,0.00391375]
[1646857333875,1.2217,2714.2,2713.8,0.00833599]
[1646857334076,1.2217,2714.2,2713.9,0.00391373]
[1646857334377,1.84365,2714.1,2713.9,0.00391373]
[1646857335177,1.84365,2714.1,2713.8,0.00833599]
[1646857335377,1.84365,2714.1,2713.9,0.00378542]
[1646857336124,2.76553,2714.1,2713.9,0.00378542]
[1646857336318,3.76553,2714.1,2713.8,0.00833599]
[1646857336518,3.76553,2714.1,2713.9,0.00378504]
[1646857336722,4.20653,2714.1,2713.9,0.00378504]
[1646857337624,4.20653,2714.1,2713.8,0.00833599]
[1646857337824,4.20653,2714.1,2713.9,0.00378504]
[1646857338630,4.20653,2714.1,2713.8,0.00833599]
[1646857339027,4.20653,2714.1,2713.9,0.00366213]
[1646857339870,4.20653,2714.1,2713.8,0.00833599]
[1646857340068,4.20653,2714.1,2713.9,0.00366649]
[1646857340270,0.92182,2714.0,2713.9,0.00366649]
[1646857340671,1.22182,2714.0,2713.9,0.00366649]
[1646857340869,1.22182,2714.0,2713.9,1.53489192]
[1646857341073,1.22182,2714.0,2713.9,1.53122543]
[1646857341379,1.22182,2714.0,2713.9,1.53124206]
[1646857341571,0.3,2714.0,2713.9,1.53124206]
[1646857341774,0.3,2714.1,2713.9,1.53124206]
[1646857342074,2.3409,2714.3,2714.1,0.97973814]
[1646857342075,0.4842,2714.3,2714.1,0.97973814]
[1646857342271,0.1842,2714.3,2714.2,1.60115925]
[1646857342873,0.1842,2714.3,2714.2,2.76610261]
[1646857343272,0.1842,2714.3,2714.2,1.60115925]
[1646857343726,0.1842,2714.3,2714.2,0.06991719]
[1646857343930,0.1842,2714.3,2714.1,0.90367839]
[1646857344426,1.10585,2714.3,2714.1,0.90367839]
[1646857344628,1.10585,2714.3,2714.1,0.8988314]
[1646857344827,1.40585,2714.3,2714.1,0.8988314]
[1646857345028,2.32758,2714.3,2714.1,0.90250976]
[1646857345224,2.62758,2714.3,2714.1,0.90250976]
[1646857345627,3.62758,2714.3,2714.1,0.90250976]
[1646857345826,3.62758,2714.3,2714.1,0.8988314]
[1646857346124,3.62758,2714.3,2714.1,0.90250908]
[1646857346324,1.84355,2714.2,2714.1,0.90250908]
[1646857346727,2.14355,2714.2,2714.1,0.90250908]
[1646857346926,2.58455,2714.2,2714.1,0.90250908]
[1646857347176,2.58455,2714.2,2714.1,0.8988314]
[1646857347378,3.58455,2714.2,2714.1,0.8988314]
[1646857347577,2.58455,2714.2,2714.1,0.8988314]
[1646857347780,3.58455,2714.2,2714.1,0.8988314]
[1646857347976,2.58455,2714.2,2714.1,0.8988314]
[1646857348177,3.58455,2714.2,2714.1,0.8988314]
[1646857350385,1.0,2714.2,2714.1,0.8988314]
[1646857350683,1.10585,2714.3,2714.1,0.8988314]
[1646857350923,1.10585,2714.3,2714.1,2.42987159]
[1646857351121,1.40585,2714.3,2714.1,0.8988314]
[1646857351321,1.10585,2714.3,2714.1,0.8988314]
[1646857351523,1.10585,2714.3,2714.2,5.11251609]
[1646857351524,0.1842,2714.3,2714.2,5.11251609]
[1646857351727,0.1842,2714.3,2714.2,1.61251609]
[1646857352624,0.1842,2714.3,2714.2,1.98061609]
[1646857357872,0.1842,2714.3,2714.2,1.93061609]
[1646857358926,0.1842,2714.3,2714.2,1.56251609]
[1646857359329,0.00370173,2714.5,2714.4,11.24]
[1646857359533,0.00370173,2714.5,2714.4,11.637268]
[1646857359730,0.00370173,2714.5,2714.4,13.16821081]
[1646857359929,0.00370173,2714.5,2714.4,1.92821081]
[1646857360335,0.84783089,2715.3,2714.4,2.89209804]
[1646857360530,0.84783089,2715.3,2714.6,0.03544934]
[1646857361131,0.84783089,2715.3,2714.8,0.07153666]
[1646857361332,3.17353126,2715.3,2714.7,0.029168]
[1646857361832,0.00367105,2715.2,2714.7,0.029168]
[1646857362682,0.00367105,2715.2,2714.8,1.53051589]
[1646857362885,7.32,2715.8,2714.9,8.69145536]
[1646857363081,3.67656288,2716.1,2715.5,0.029168]
[1646857363281,3.67656288,2716.1,2715.7,0.029168]
[1646857363482,3.67656288,2716.1,2716.0,0.029168]
[1646857363683,3.96281593,2716.3,2716.0,0.029168]
[1646857363881,0.015751,2716.9,2716.0,0.029168]
[1646857364081,0.05576337,2716.8,2716.0,0.029168]
[1646857365281,0.92091,2716.6,2716.0,0.029168]
[1646857365681,0.05317008,2716.5,2716.0,0.029168]
[1646857365928,0.97420168,2716.5,2716.0,0.029168]
[1646857366130,0.05210831,2716.3,2716.0,0.029168]
[1646857366330,0.05210831,2716.3,2715.7,0.029168]
[1646857366331,0.05210831,2716.3,2715.7,0.96304419]
[1646857366732,0.05210831,2716.3,2715.7,0.029168]
[1646857368133,0.00402916,2716.1,2715.7,0.029168]
[1646857368332,1.21381353,2716.1,2715.7,0.029168]
[1646857368738,1.51381353,2716.1,2715.7,0.029168]
[1646857368937,1.50978437,2716.1,2715.7,0.029168]
[1646857369338,0.00402921,2716.0,2715.7,0.029168]
[1646857370175,0.3,2716.1,2715.7,0.029168]
[1646857370378,0.00402924,2716.0,2715.7,0.029168]
[1646857371476,0.05210831,2716.3,2715.7,0.029168]
[1646857371677,0.00402924,2716.0,2715.7,0.029168]
[1646857372585,0.05909145,2716.7,2715.7,0.029168]
[1646857372778,0.05909145,2716.7,2716.0,0.029168]
[1646857372981,0.05909145,2716.7,2716.2,0.029168]
[1646857373829,0.98093346,2716.6,2716.2,0.029168]
[1646857374028,0.98483995,2716.6,2716.2,0.029168]
[1646857374925,0.0526019,2716.5,2716.2,0.029168]
[1646857375426,0.05650841,2716.5,2716.2,0.029168]
[1646857376225,0.0526019,2716.5,2716.2,0.029168]
[1646857376426,0.05651668,2716.5,2716.2,0.029168]
[1646857377479,0.05186439,2716.7,2716.2,0.029168]
[1646857377782,0.00391478,2716.5,2716.2,0.029168]
[1646857378579,0.05186439,2716.7,2716.2,0.029168]
[1646857378982,0.00391478,2716.5,2716.2,0.029168]
[1646857379178,0.92487478,2716.5,2716.2,0.029168]
[1646857379980,1.22096,2716.5,2716.0,0.029168]
[1646857380284,0.05840286,2716.3,2716.0,0.029168]
[1646857380483,0.92106,2716.2,2715.7,0.029168]
[1646857380680,0.05681699,2716.1,2715.7,0.029168]
[1646857381329,0.00391441,2716.1,2715.7,0.029168]
[1646857382330,0.05046093,2716.3,2715.7,0.029168]
[1646857382733,0.00391443,2716.0,2715.7,0.029168]
[1646857383429,0.05046093,2716.3,2715.7,3.529168]
[1646857383633,0.00391445,2716.0,2715.7,0.029168]
[1646857384034,0.00391445,2716.0,2715.5,0.029168]
[1646857384686,0.92105,2716.2,2715.5,0.029168]
[1646857384877,0.00391455,2715.9,2715.5,0.029168]
[1646857385075,0.00391455,2715.9,2715.5,0.10889896]
[1646857385676,0.00391455,2715.9,2715.5,0.07973096]
[1646857385876,0.3,2716.2,2715.5,0.07973096]
[1646857386076,0.00391458,2715.8,2715.5,0.07973096]
[1646857386277,0.00391458,2715.8,2715.5,9.44777996]
[1646857386476,0.00391458,2715.8,2715.6,3.5]
[1646857387076,0.05599652,2716.6,2715.8,0.00782915]
[1646857387276,0.05599652,2716.6,2715.8,3.50782915]
[1646857387476,0.05599652,2716.6,2715.8,0.00782915]
[1646857390231,0.05820911,2716.4,2715.8,0.00782915]
[1646857390431,1.90040911,2716.4,2715.8,0.00782915]
[1646857390647,0.441,2716.3,2715.8,0.00782915]
[1646857390832,0.04753776,2716.1,2715.8,0.00782915]
[1646857391031,0.441,2716.0,2715.8,0.00782915]
[1646857391230,0.49932486,2715.9,2715.8,0.00782915]
[1646857391439,0.741,2715.9,2715.8,0.00782915]
[1646857391631,2.58355,2715.9,2715.8,0.00782915]
[1646857391831,3.58355,2715.9,2715.8,0.00782915]
[1646857392699,1.741,2715.9,2715.8,0.00782915]
[1646857393099,0.741,2715.9,2715.8,0.00782915]
[1646857393502,0.3,2715.9,2715.8,0.00782915]
[1646857393701,0.30413027,2716.0,2715.8,0.00782915]
[1646857394104,0.00413027,2716.0,2715.8,0.00782915]
[1646857394303,6.4116,2716.1,2715.8,0.00782915]
[1646857394304,7.33268,2716.1,2715.8,0.00782915]
[1646857394502,0.00263209,2716.0,2715.8,0.00782915]
[1646857395508,1.3,2716.1,2715.8,0.00782915]
[1646857395706,0.3,2716.3,2715.8,0.00782915]
[1646857395929,0.00263209,2716.0,2715.8,0.00782915]
[1646857396727,1.22101,2716.4,2715.8,0.00782915]
[1646857397026,0.00413226,2716.0,2715.8,0.00782915]
[1646857397829,1.22101,2716.4,2715.8,0.00782915]
[1646857398027,0.92108,2716.2,2715.8,0.00782915]
[1646857398228,0.00413226,2716.0,2715.8,0.00782915]
[1646857399032,0.92527226,2716.0,2715.8,0.00782915]
[1646857399232,0.92114,2716.0,2715.8,0.00782915]
[1646857399431,1.22527226,2716.0,2715.8,0.00782915]
[1646857400476,1.22114,2716.0,2715.8,0.00782915]
[1646857400677,1.22411705,2716.0,2715.8,0.00782915]
[1646857401082,0.30297705,2716.0,2715.8,0.00782915]
[1646857401277,0.00413226,2716.0,2715.8,0.00782915]
[1646857401579,0.05911649,2716.1,2715.8,0.00782915]
[1646857401978,0.0039928,2716.0,2715.8,0.00782915]
[1646857402779,0.05911649,2716.1,2715.8,0.00782915]
[1646857402980,0.0039928,2716.0,2715.8,0.00782915]
[1646857404031,0.05911649,2716.1,2715.8,0.00782915]
[1646857404333,0.49839315,2716.0,2715.8,0.00782915]
[1646857404534,0.92118,2715.9,2715.8,0.00782915]
[1646857404930,1.22118,2715.9,2715.8,0.00782915]
[1646857407188,0.3,2715.9,2715.8,0.00782915]
[1646857407376,1.74466097,2716.0,2715.8,0.00782915]
[1646857407377,2.04466097,2716.0,2715.8,0.00782915]
[1646857407578,0.741,2716.0,2715.8,0.00782915]
[1646857407777,0.7433721,2716.0,2715.8,0.00782915]
[1646857408780,0.741,2716.0,2715.8,0.00782915]
[1646857408986,0.74466685,2716.0,2715.8,0.00782915]
[1646857409183,1.66584185,2716.0,2715.8,0.00782915]
[1646857409484,1.96584185,2716.0,2715.8,0.00782915]
[1646857409881,1.962175,2716.0,2715.8,0.00782915]
[1646857410282,1.96584185,2716.0,2715.8,0.00782915]
[1646857411127,1.962175,2716.0,2715.8,0.00782915]
[1646857411536,1.96589915,2716.0,2715.8,0.00782915]
[1646857412133,3.80835915,2716.0,2715.8,0.00782915]
[1646857412332,6.647115,2716.0,2715.8,0.00782915]
[1646857412734,6.65083881,2716.0,2715.8,0.00782915]
[1646857413532,6.647115,2716.0,2715.8,0.00782915]
[1646857413934,6.65083881,2716.0,2715.8,0.00782915]
[1646857414778,3.5,2715.9,2715.8,0.00782915]
[1646857415182,4.54810751,2715.9,2715.8,0.00782915]
[1646857415380,3.54810751,2715.9,2715.8,0.00782915]
[1646857415578,5.46930751,2715.9,2715.8,0.00782915]
[1646857415779,1.96930751,2715.9,2715.8,0.00782915]
[1646857416179,0.96930751,2715.9,2715.8,0.00782915]
[1646857417583,0.04810751,2715.9,2715.8,0.00782915]
[1646857418428,0.34810751,2715.9,2715.8,0.00782915]
[1646857420837,0.3,2715.9,2715.8,0.00782915]
[1646857421035,3.468438,2716.2,2715.8,0.00782915]
[1646857421036,0.00368271,2716.0,2715.8,0.00782915]
[1646857421237,0.30368271,2716.0,2715.8,0.00782915]
[1646857421437,0.00368271,2716.0,2715.8,0.00782915]
[1646857421838,0.97768617,2716.0,2715.8,0.00782915]
[1646857422045,0.04919567,2715.9,2715.8,0.00782915]
[1646857423679,0.27401791,2716.0,2715.8,0.00782915]
[1646857424485,0.27033567,2716.0,2715.8,0.00782915]
[1646857424689,0.27401789,2716.0,2715.8,0.00782915]
[1646857425282,0.00368222,2716.0,2715.8,0.00782915]
[1646857425682,0.34677385,2716.1,2715.8,0.00782915]
[1646857425927,0.00368224,2716.0,2715.8,0.00782915]
[1646857426732,0.04677385,2716.1,2715.8,0.00782915]
[1646857426932,2.547368,2716.2,2715.8,0.00782915]
[1646857427135,0.00238835,2716.0,2715.8,0.00782915]
[1646857428033,1.547368,2716.2,2715.8,0.00782915]
[1646857428233,0.00238835,2716.0,2715.8,0.00782915]
[1646857429237,1.547368,2716.2,2715.8,0.00782915]
[1646857429439,0.00247177,2716.0,2715.8,0.00782915]
[1646857430485,1.547368,2716.2,2715.8,0.00782915]
[1646857430686,0.00397583,2716.0,2715.8,0.00782915]
[1646857431685,2.468438,2716.2,2715.8,0.00782915]
[1646857431889,0.00397583,2716.0,2715.8,0.00782915]
[1646857432785,2.468438,2716.2,2715.8,0.00782915]
[1646857433188,0.00387982,2716.0,2715.8,0.00782915]
[1646857434032,1.547368,2716.2,2715.8,0.00782915]
[1646857434231,0.00387982,2716.0,2715.8,0.00782915]
[1646857435236,1.547368,2716.2,2715.8,0.00782915]
[1646857435431,0.00376342,2716.0,2715.8,0.00782915]
[1646857436435,1.547368,2716.2,2715.8,0.00782915]
[1646857436835,0.00376986,2716.0,2715.8,0.00782915]
[1646857437780,0.00238227,2716.0,2715.8,0.00782915]
[1646857438776,1.547368,2716.2,2715.8,0.00782915]
[1646857438976,0.00367579,2716.0,2715.8,0.00782915]
[1646857439180,0.92117,2715.9,2715.8,0.00782915]
[1646857440385,4.91373112,2715.9,2715.8,2.915e-05]
[1646857440579,5.5,2715.8,2714.7,0.73893446]
[1646857440778,1.84267,2715.4,2714.7,0.73893446]
[1646857441028,3.28367,2715.4,2714.8,1.53073754]
[1646857441228,3.58367,2715.4,2714.8,1.53073754]
[1646857441428,0.89994221,2715.2,2714.8,1.53073754]
[1646857441629,0.3,2715.3,2714.8,1.53073754]
[1646857442029,4.88367,2715.4,2714.8,1.53073754]
[1646857442233,4.58367,2715.4,2714.8,1.53073754]
[1646857442833,0.94445276,2715.3,2714.8,1.53073754]
[1646857444136,3.5,2715.2,2714.8,1.53073754]
[1646857444336,5.2883,2715.2,2714.8,1.53073754]
[1646857444539,5.5883,2715.2,2714.8,1.53073754]
[1646857444977,2.0883,2715.2,2714.8,1.53073754]
[1646857445180,2.117468,2715.2,2714.8,1.53073754]
[1646857445377,0.329168,2715.2,2714.8,1.53073754]
[1646857446180,0.3,2715.2,2714.8,1.53073754]
[1646857446379,0.3,2715.2,2714.9,1.61162344]
[1646857446579,0.3,2715.3,2715.0,1.6204159]
[1646857446780,0.3,2715.4,2715.1,1.53073754]
[1646857446979,0.329168,2715.5,2715.1,1.53073754]
[1646857447178,0.329168,2715.5,2715.2,1.53073754]
[1646857447380,0.329168,2715.5,2715.3,1.53073754]
[1646857447579,0.029168,2715.5,2714.7,1.192]
[1646857447778,0.029168,2715.5,2714.8,1.53059059]
[1646857447978,0.3,2715.6,2714.9,0.08253364]
[1646857448183,0.029168,2715.4,2715.0,1.53059059]
[1646857449636,0.329168,2715.6,2715.1,0.0902746]
[1646857449836,0.329168,2715.6,2715.2,1.53059059]
[1646857450037,0.329168,2715.6,2715.3,0.08571081]
[1646857450238,0.3,2715.6,2715.4,1.53059059]
[1646857450437,0.3,2715.6,2715.4,1.60607201]
[1646857450638,1.250388,2715.7,2715.4,0.07548142]
[1646857450844,1.250388,2715.7,2714.8,0.07657634]
[1646857451038,1.22122,2715.7,2715.0,0.08191419]
[1646857451239,0.029168,2715.5,2715.1,1.53055704]
[1646857451439,0.029168,2715.5,2715.2,0.06958216]
[1646857451638,0.029168,2715.5,2715.3,1.53055704]
[1646857451837,0.9504334,2715.5,2715.3,1.53055704]
[1646857452039,0.9504334,2715.5,2715.4,1.53055704]
[1646857452282,0.9504334,2715.5,2714.7,1.192]
[1646857452283,2.1717334,2715.5,2715.1,0.06929702]
[1646857452482,2.1717334,2715.5,2715.2,1.53060422]
[1646857454387,5.6425654,2715.5,2715.2,1.53060422]
[1646857454585,0.029168,2715.3,2714.8,0.08278461]
[1646857454788,3.529168,2715.3,2714.9,1.53068814]
[1646857454986,4.4505947,2715.3,2714.9,1.53068814]
[1646857455185,6.0505947,2715.3,2714.9,1.53068814]
[1646857455584,1.84296,2715.2,2714.9,1.53068814]
[1646857455786,2.14296,2715.2,2714.9,1.53068814]
[1646857456431,7.48589,2715.2,2714.9,1.53068814]
[1646857456633,0.029168,2715.1,2714.9,1.53068814]
[1646857456834,1.843,2715.1,2714.9,1.53068814]
[1646857457032,3.829168,2715.0,2714.9,1.53068814]
[1646857457232,1.8429639,2714.9,2714.5,0.10181315]
[1646857457433,2.7644439,2714.9,2714.7,0.0823514]
[1646857457630,3.0644439,2714.9,2714.8,1.53083006]
[1646857457835,4.3936119,2714.9,2714.8,1.53083006]
[1646857458039,3.3936119,2714.9,2714.8,1.53083006]
[1646857458239,4.3936119,2714.9,2714.8,1.53083006]
[1646857458441,3.3936119,2714.9,2714.8,1.53083006]
[1646857458643,4.3936119,2714.9,2714.5,0.0818754]
[1646857458840,4.3936119,2714.9,2714.6,1.53083006]
[1646857459781,3.6936119,2714.9,2714.6,1.53083006]
[1646857459986,4.90988699,2714.9,2714.6,1.53083006]
[1646857461191,0.029168,2714.8,2714.6,1.53083006]
[1646857462390,3.6936119,2714.9,2714.6,1.53083006]
[1646857462992,1.850648,2714.9,2714.6,1.53083006]
[1646857463191,5.784,2715.1,2714.6,1.53083006]
[1646857463192,0.029168,2715.1,2714.6,1.53083006]
[1646857463441,0.029168,2715.1,2714.7,1.53083006]
[1646857463645,0.92132,2715.2,2714.8,1.53083006]
[1646857463848,0.92132,2715.2,2714.9,1.53083006]
[1646857464046,0.029168,2715.3,2714.5,2.1975928]
[1646857464243,0.029168,2715.3,2714.6,1.53083006]
[1646857464446,0.029168,2715.3,2714.7,1.600174]
[1646857464644,0.029168,2715.3,2714.9,0.08879946]
[1646857464943,0.029168,2715.3,2715.1,0.07150669]
[1646857465145,0.92121,2715.6,2715.2,1.53083006]
[1646857465545,0.3,2715.5,2715.2,1.53083006]
[1646857468483,0.3,2715.5,2715.3,1.53083006]
[1646857468684,1.2212664,2715.5,2715.4,1.53083006]
[1646857468891,4.7212664,2715.5,2715.0,1.53083006]
[1646857469085,0.029168,2715.4,2715.0,1.53083006]
[1646857469484,0.08093985,2715.4,2715.0,1.53083006]
[1646857469687,0.08093985,2715.4,2715.1,1.53083006]
[1646857469886,0.92142,2715.2,2714.6,1.26862342]
[1646857470086,0.92142,2715.2,2714.7,1.53076385]
[1646857470087,0.92142,2715.0,2714.7,1.53076385]
[1646857470288,1.22142,2715.0,2714.7,1.53076385]
[1646857474538,0.22142,2715.0,2714.7,1.53076385]